Workbook

Sheet 2019-3-8T17-25-37
A1: $ | B1: Date | C1: Time | G1: State | H1: Comment | I1: Pressure | J1: Bel Pos | K1: Batt Volt | L1: Batt Amps | M1: CTD Temp | N1: CTD Sal | O1: Raw Press | P1: LPF Press | Q1: LPF Vel | R1: Diff Vel | S1: Diff 2 Vel | T1: Slope of LPF Press. | U1: CTD Sample Period | V1: LPS331 Press | W1: LPS311 Temp | X1: SHT21 Humid | Y1: SHT21 Temp | Z1: PID SP | AA1: PID PV | AB1: PID Y1 | AC1: PID Y2 | AD1: PID I | AE1: PID v | AF1: PID u | AG1: PID uCPS | AH1: PID h | AI1: FLBB | AJ1: Topt | AK1: Tphase | AL1: Rphase | AM1: NO3 | AN1: pH | AO1: GPS | AP1: Irid Modem
A2: $ | B2: 2019-03-08 | C2: 17:25:39.439 | D2: =TEXT(B2,"dd-mm-yy ")&TEXT(C2,"hh:mm:ss") -> 08-03-19 17:25:39 | E2: =(D2-DATE(1970,1,1))*86400 -> 1564853139 | F2: =E2-$E$2 -> 0 | G2: Surface Ops | H2: Opened new engr log file: \SD\2019-3-8T17-25-37
A3: $ | B3: 2019-03-08 | C3: 17:25:39.833 | D3: =TEXT(B3,"dd-mm-yy ")&TEXT(C3,"hh:mm:ss") -> 08-03-19 17:25:40 | E3: =(D3-DATE(1970,1,1))*86400 -> 1564853140 | F3: =E3-$E$2 -> 1.000000238 | G3: Surface Ops | H3: Profile Number = 0
A4: $ | B4: 2019-03-08 | C4: 17:25:39.837 | D4: 08-03-19 17:25:40 | E4: 1564853140 | F4: 1.000000238 | G4: Surface Ops | H4: RecMode false, PID Off, Stopped, Closed, Scend sub: , depthNum = 0 | I4: 0.17 | J4: 152.693101 | K4: 31.05 | L4: 0.060625
A5: $ | B5: 2019-03-08 | C5: 17:25:40.238 | D5: 08-03-19 17:25:40 | E5: 1564853140 | F5: 1.000000238 | G5: AB Retract Fast | H5: State Entry
A6: $ | B6: 2019-03-08 | C6: 17:25:40.438 | D6: 08-03-19 17:25:40 | E6: 1564853140 | F6: 1.000000238 | G6: AB Retract Fast | H6: Turned on ELMO
A7: $ | B7: 2019-03-08 | C7: 17:25:40.648 | D7: 08-03-19 17:25:41 | E7: 1564853141 | F7: 2.000000477 | G7: AB Retract Fast | H7: Starting valve close
A8: $ | B8: 2019-03-08 | C8: 17:25:41.153 | D8: 08-03-19 17:25:41 | E8: 1564853141 | F8: 2.000000477 | G8: AB Retract Fast | H8: Turned on FLBB
A9: $ | B9: 2019-03-08 | C9: 17:25:41.157 | D9: 08-03-19 17:25:41 | E9: 1564853141 | F9: 2.000000477 | G9: AB Retract Fast | H9: Turned on OPT
A10: $ | B10: 2019-03-08 | C10: 17:25:41.554 | D10: 08-03-19 17:25:42 | E10: 1564853142 | F10: 3 | G10: AB Retract Fast | H10: Turned OFF GPS
A11: $ | B11: 2019-03-08 | C11: 17:25:41.558 | D11: 08-03-19 17:25:42 | E11: 1564853142 | F11: 3 | G11: AB Retract Fast | H11: Turned OFF BT
A12: $ | B12: 2019-03-08 | C12: 17:25:41.956 | D12: 08-03-19 17:25:42 | E12: 1564853142 | F12: 3 | G12: AB Retract Fast | H12: Retracting bellows fast to bellows position = 100 at 15000 cps
A13: $ | B13: 2019-03-08 | C13: 17:25:41.961 | D13: 08-03-19 17:25:42 | E13: 1564853142 | F13: 3 | G13: AB Retract Fast | H13: Initializing SBE 41 LPF
A14: $ | B14: 2019-03-08 | C14: 17:25:42.360 | D14: 08-03-19 17:25:42 | E14: 1564853142 | F14: 3 | G14: AB Retract Fast | H14: Starting valve open
A15: $ | B15: 2019-03-08 | C15: 17:25:45.068 | D15: 08-03-19 17:25:45 | E15: 1564853145 | F15: 6.000000238 | G15: AB Retract Fast | H15: Changin Elmo JV to = -15000
A16: $ | B16: 2019-03-08 | C16: 17:25:38.434 | D16: 08-03-19 17:25:38 | E16: 1564853138 | F16: -0.9999995232 | G16: AB Retract Fast | H16: SBE41 Message | N16: 0.18 | O16: 0.18 | P16: 0.17 | Q16: 0 | R16: -0.003333 | S16: -0.001667 | T16: 0 | U16: 3
A17: $ | B17: 2019-03-08 | C17: 17:25:41.353 | D17: 08-03-19 17:25:41 | E17: 1564853141 | F17: 2.000000477 | G17: AB Retract Fast | H17: SBE41 Message | N17: 0.18 | O17: 0.18 | P17: 0.170021 | Q17: 0 | R17: 0 | S17: -0.001667 | T17: 0 | U17: 3
A18: $ | B18: 2019-03-08 | C18: 17:25:41.552 | D18: 08-03-19 17:25:42 | E18: 1564853142 | F18: 3 | G18: AB Retract Fast | H18: Optode Message | I18: 0.18
A19: $ | B19: 2019-03-08 | C19: 17:25:41.553 | D19: 08-03-19 17:25:42 | E19: 1564853142 | F19: 3 | G19: AB Retract Fast | H19: Optode Message | I19: 0.18 | AJ19: StartupInfo,4330F,2762,Mode,AiCaP,CANID,0x18340100,AiCaP Version,0,RS232 Protocol Version,3,Config Version,12
A20: $ | B20: 2019-03-08 | C20: 17:25:41.553 | D20: 08-03-19 17:25:42 | E20: 1564853142 | F20: 3 | G20: AB Retract Fast | H20: Optode Message | I20: 0.18
A21: $ | B21: 2019-03-08 | C21: 17:25:41.753 | D21: 08-03-19 17:25:42 | E21: 1564853142 | F21: 3 | G21: AB Retract Fast | H21: Optode Message | I21: 0.18 | AJ21: Trying to connect to CANbus network
A22: $ | B22: 2019-03-08 | C22: 17:25:44.181 | D22: 08-03-19 17:25:44 | E22: 1564853144 | F22: 5.000000477 | G22: AB Retract Fast | H22: SBE41 Message | N22: 0.17 | O22: 0.17 | P22: 0.170261 | Q22: 2e-06 | R22: 0.003333 | S22: 0.001667 | T22: 0 | U22: 3
A23: $ | B23: 2019-03-08 | C23: 17:25:47.252 | D23: 08-03-19 17:25:47 | E23: 1564853147 | F23: 8 | G23: AB Retract Fast | H23: SBE41 Message | N23: 0.17 | O23: 0.17 | P23: 0.171261 | Q23: 4e-06 | R23: 0 | S23: 0.001667 | T23: -2e-06 | U23: 3
A24: $ | B24: 2019-03-08 | C24: 17:25:47.973 | D24: 08-03-19 17:25:48 | E24: 1564853148 | F24: 9.000000238 | G24: AB Retract Fast | H24: RecMode false, PID Off, Ret'g, Open, Scend sub: , depthNum = 0 | I24: 0.17 | J24: 152.666299 | K24: 30.8 | L24: 1.2775
A25: $ | B25: 2019-03-08 | C25: 17:25:47.984 | D25: 08-03-19 17:25:48 | E25: 1564853148 | F25: 9.000000238 | G25: AB Retract Fast | H25: Changin Elmo JV to = -15000
A26: $ | B26: 2019-03-08 | C26: 17:25:48.383 | D26: 08-03-19 17:25:48 | E26: 1564853148 | F26: 9.000000238 | G26: AB Retract Fast | H26: RecMode false, PID Off, Ret'g, Open, Scend sub: , depthNum = 0 | I26: 0.17 | J26: 152.666299 | K26: 30.8 | L26: 1.2775
A27: $ | B27: 2019-03-08 | C27: 17:25:51.013 | D27: 08-03-19 17:25:51 | E27: 1564853151 | F27: 12.00000024 | G27: AB Retract Fast | H27: Changin Elmo JV to = -15000
A28: $ | B28: 2019-03-08 | C28: 17:25:50.180 | D28: 08-03-19 17:25:50 | E28: 1564853150 | F28: 11 | G28: AB Retract Fast | H28: SBE41 Message | N28: 0.18 | O28: 0.18 | P28: 0.173281 | Q28: -2.2e-05 | R28: -0.003333 | S28: -0.001667 | T28: -6e-06 | U28: 3
A29: $ | B29: 2019-03-08 | C29: 17:25:51.469 | D29: 08-03-19 17:25:51 | E29: 1564853151 | F29: 12.00000024 | G29: AB Retract Fast | H29: RecMode false, PID Off, Ret'g, Open, Scend sub: , depthNum = 0 | I29: 0.18 | J29: 152.55278 | K29: 30.8 | L29: 1.259375
A30: $ | B30: 2019-03-08 | C30: 17:25:54.089 | D30: 08-03-19 17:25:54 | E30: 1564853154 | F30: 15.00000048 | G30: AB Retract Fast | H30: Changin Elmo JV to = -15000
A31: $ | B31: 2019-03-08 | C31: 17:25:53.180 | D31: 08-03-19 17:25:53 | E31: 1564853153 | F31: 14.00000024 | G31: AB Retract Fast | H31: SBE41 Message | N31: 0.18 | O31: 0.18 | P31: 0.175196 | Q31: -0.000124 | R31: 0 | S31: -0.001667 | T31: -1.2e-05 | U31: 3
A32: $ | B32: 2019-03-08 | C32: 17:25:54.740 | D32: 08-03-19 17:25:55 | E32: 1564853155 | F32: 16 | G32: AB Retract Fast | H32: RecMode false, PID Off, Ret'g, Open, Scend sub: , depthNum = 0 | I32: 0.18 | J32: 152.342622 | K32: 30.825 | L32: 1.24625
A33: $ | B33: 2019-03-08 | C33: 17:25:57.164 | D33: 08-03-19 17:25:57 | E33: 1564853157 | F33: 18.00000048 | G33: AB Retract Fast | H33: Changin Elmo JV to = -15000
A34: $ | B34: 2019-03-08 | C34: 17:25:56.181 | D34: 08-03-19 17:25:56 | E34: 1564853156 | F34: 17.00000024 | G34: AB Retract Fast | H34: SBE41 Message | N34: 0.17 | O34: 0.17 | P34: 0.175436 | Q34: -0.000297 | R34: 0.003333 | S34: 0.001667 | T34: -1.8e-05 | U34: 3
A35: $ | B35: 2019-03-08 | C35: 17:25:57.814 | D35: 08-03-19 17:25:58 | E35: 1564853158 | F35: 19 | G35: AB Retract Fast | H35: RecMode false, PID Off, Ret'g, Open, Scend sub: , depthNum = 0 | I35: 0.17 | J35: 151.613654 | K35: 30.8 | L35: 1.23875
A36: $ | B36: 2019-03-08 | C36: 17:26:00.239 | D36: 08-03-19 17:26:00 | E36: 1564853160 | F36: 21.00000048 | G36: AB Retract Fast | H36: Changin Elmo JV to = -15000
A37: $ | B37: 2019-03-08 | C37: 17:25:59.181 | D37: 08-03-19 17:25:59 | E37: 1564853159 | F37: 20.00000024 | G37: AB Retract Fast | H37: SBE41 Message | N37: 0.17 | O37: 0.17 | P37: 0.174542 | Q37: -0.000431 | R37: 0 | S37: 0.001667 | T37: -2.2e-05 | U37: 3
A38: $ | B38: 2019-03-08 | C38: 17:26:00.889 | D38: 08-03-19 17:26:01 | E38: 1564853161 | F38: 22 | G38: AB Retract Fast | H38: RecMode false, PID Off, Ret'g, Open, Scend sub: , depthNum = 0 | I38: 0.17 | J38: 150.862498 | K38: 30.8 | L38: 1.20875
A39: $ | B39: 2019-03-08 | C39: 17:26:03.312 | D39: 08-03-19 17:26:03 | E39: 1564853163 | F39: 24 | G39: AB Retract Fast | H39: Changin Elmo JV to = -15000
A40: $ | B40: 2019-03-08 | C40: 17:26:02.181 | D40: 08-03-19 17:26:02 | E40: 1564853162 | F40: 23.00000024 | G40: AB Retract Fast | H40: SBE41 Message | N40: 0.17 | O40: 0.17 | P40: 0.174542 | Q40: -0.000417 | R40: 0 | S40: 0 | T40: -2.7e-05 | U40: 3
A41: $ | B41: 2019-03-08 | C41: 17:26:03.961 | D41: 08-03-19 17:26:04 | E41: 1564853164 | F41: 25.00000024 | G41: AB Retract Fast | H41: RecMode false, PID Off, Ret'g, Open, Scend sub: , depthNum = 0 | I41: 0.17 | J41: 150.107505 | K41: 30.8 | L41: 1.241875
A42: $ | B42: 2019-03-08 | C42: 17:26:06.385 | D42: 08-03-19 17:26:06 | E42: 1564853166 | F42: 27 | G42: AB Retract Fast | H42: Changin Elmo JV to = -15000
A43: $ | B43: 2019-03-08 | C43: 17:26:06.687 | D43: 08-03-19 17:26:07 | E43: 1564853167 | F43: 28.00000024 | G43: AB Retract Fast | H43: PTH Message | V43: 807.158203 | W43: 19.1 | X43: 46.753448 | Y43: 19.731406
A44: $ | B44: 2019-03-08 | C44: 17:26:05.180 | D44: 08-03-19 17:26:05 | E44: 1564853165 | F44: 26.00000048 | G44: AB Retract Fast | H44: SBE41 Message | N44: 0.17 | O44: 0.17 | P44: 0.175436 | Q44: -0.000283 | R44: 0 | S44: 0 | T44: -3.2e-05 | U44: 3
A45: $ | B45: 2019-03-08 | C45: 17:26:07.331 | D45: 08-03-19 17:26:07 | E45: 1564853167 | F45: 28.00000024 | G45: AB Retract Fast | H45: RecMode false, PID Off, Ret'g, Open, Scend sub: , depthNum = 0 | I45: 0.17 | J45: 149.277889 | K45: 30.8 | L45: 1.23625
A46: $ | B46: 2019-03-08 | C46: 17:26:09.453 | D46: 08-03-19 17:26:09 | E46: 1564853169 | F46: 30 | G46: AB Retract Fast | H46: Changin Elmo JV to = -15000
A47: $ | B47: 2019-03-08 | C47: 17:26:08.181 | D47: 08-03-19 17:26:08 | E47: 1564853168 | F47: 29.00000048 | G47: AB Retract Fast | H47: SBE41 Message | N47: 0.17 | O47: 0.17 | P47: 0.175196 | Q47: -0.00014 | R47: 0 | S47: 0 | T47: -3.7e-05 | U47: 3
A48: $ | B48: 2019-03-08 | C48: 17:26:09.909 | D48: 08-03-19 17:26:10 | E48: 1564853170 | F48: 31.00000024 | G48: AB Retract Fast | H48: RecMode false, PID Off, Ret'g, Open, Scend sub: , depthNum = 0 | I48: 0.17 | J48: 148.594374 | K48: 30.8 | L48: 1.23625
A49: $ | B49: 2019-03-08 | C49: 17:26:12.526 | D49: 08-03-19 17:26:13 | E49: 1564853173 | F49: 34.00000048 | G49: AB Retract Fast | H49: Changin Elmo JV to = -15000
A50: $ | B50: 2019-03-08 | C50: 17:26:11.181 | D50: 08-03-19 17:26:11 | E50: 1564853171 | F50: 32 | G50: AB Retract Fast | H50: SBE41 Message | N50: 0.18 | O50: 0.18 | P50: 0.173281 | Q50: -4e-05 | R50: -0.003333 | S50: -0.001667 | T50: -4e-05 | U50: 3
A51: $ | B51: 2019-03-08 | C51: 17:26:12.984 | D51: 08-03-19 17:26:13 | E51: 1564853173 | F51: 34.00000048 | G51: AB Retract Fast | H51: RecMode false, PID Off, Ret'g, Open, Scend sub: , depthNum = 0 | I51: 0.18 | J51: 147.831118 | K51: 30.8 | L51: 1.223125
A52: $ | B52: 2019-03-08 | C52: 17:26:15.602 | D52: 08-03-19 17:26:16 | E52: 1564853176 | F52: 37.00000048 | G52: AB Retract Fast | H52: Changin Elmo JV to = -15000
A53: $ | B53: 2019-03-08 | C53: 17:26:14.180 | D53: 08-03-19 17:26:14 | E53: 1564853174 | F53: 35 | G53: AB Retract Fast | H53: SBE41 Message | N53: 0.17 | O53: 0.17 | P53: 0.171283 | Q53: 4e-05 | R53: 0.003333 | S53: 0 | T53: -3.9e-05 | U53: 3
A54: $ | B54: 2019-03-08 | C54: 17:26:16.255 | D54: 08-03-19 17:26:16 | E54: 1564853176 | F54: 37.00000048 | G54: AB Retract Fast | H54: RecMode false, PID Off, Ret'g, Open, Scend sub: , depthNum = 0 | I54: 0.17 | J54: 147.069022 | K54: 30.8 | L54: 1.25875
A55: $ | B55: 2019-03-08 | C55: 17:26:18.680 | D55: 08-03-19 17:26:19 | E55: 1564853179 | F55: 40.00000048 | G55: AB Retract Fast | H55: Changin Elmo JV to = -15000
A56: $ | B56: 2019-03-08 | C56: 17:26:17.180 | D56: 08-03-19 17:26:17 | E56: 1564853177 | F56: 38 | G56: AB Retract Fast | H56: SBE41 Message | N56: 0.16 | O56: 0.16 | P56: 0.170501 | Q56: 0.000142 | R56: 0.003333 | S56: 0.003333 | T56: -3.7e-05 | U56: 3
A57: $ | B57: 2019-03-08 | C57: 17:26:19.330 | D57: 08-03-19 17:26:19 | E57: 1564853179 | F57: 40.00000048 | G57: AB Retract Fast | H57: RecMode false, PID Off, Ret'g, Open, Scend sub: , depthNum = 0 | I57: 0.16 | J57: 146.307668 | K57: 30.8 | L57: 1.26125
A58: $ | B58: 2019-03-08 | C58: 17:26:21.757 | D58: 08-03-19 17:26:22 | E58: 1564853182 | F58: 43 | G58: AB Retract Fast | H58: Changin Elmo JV to = -15000
A59: $ | B59: 2019-03-08 | C59: 17:26:20.181 | D59: 08-03-19 17:26:20 | E59: 1564853180 | F59: 41.00000024 | G59: AB Retract Fast | H59: SBE41 Message | N59: 0.16 | O59: 0.16 | P59: 0.171021 | Q59: 0.000284 | R59: 0 | S59: 0.001667 | T59: -3.6e-05 | U59: 3
A60: $ | B60: 2019-03-08 | C60: 17:26:22.407 | D60: 08-03-19 17:26:22 | E60: 1564853182 | F60: 43 | G60: AB Retract Fast | H60: RecMode false, PID Off, Ret'g, Open, Scend sub: , depthNum = 0 | I60: 0.16 | J60: 145.547438 | K60: 30.8 | L60: 1.21875
A61: $ | B61: 2019-03-08 | C61: 17:26:24.831 | D61: 08-03-19 17:26:25 | E61: 1564853185 | F61: 46 | G61: AB Retract Fast | H61: Changin Elmo JV to = -15000
A62: $ | B62: 2019-03-08 | C62: 17:26:23.181 | D62: 08-03-19 17:26:23 | E62: 1564853183 | F62: 44.00000024 | G62: AB Retract Fast | H62: SBE41 Message | N62: 0.18 | O62: 0.18 | P62: 0.171999 | Q62: 0.000391 | R62: -0.006667 | S62: -0.003333 | T62: -3.6e-05 | U62: 3
A63: $ | B63: 2019-03-08 | C63: 17:26:25.289 | D63: 08-03-19 17:26:25 | E63: 1564853185 | F63: 46 | G63: AB Retract Fast | H63: RecMode false, PID Off, Ret'g, Open, Scend sub: , depthNum = 0 | I63: 0.18 | J63: 144.778603 | K63: 30.8 | L63: 1.225625
A64: $ | B64: 2019-03-08 | C64: 17:26:27.909 | D64: 08-03-19 17:26:28 | E64: 1564853188 | F64: 49.00000024 | G64: AB Retract Fast | H64: Changin Elmo JV to = -15000
A65: $ | B65: 2019-03-08 | C65: 17:26:26.181 | D65: 08-03-19 17:26:26 | E65: 1564853186 | F65: 47.00000024 | G65: AB Retract Fast | H65: SBE41 Message | N65: 0.17 | O65: 0.17 | P65: 0.171675 | Q65: 0.000328 | R65: 0.003333 | S65: -0.001667 | T65: -3.5e-05 | U65: 3
A66: $ | B66: 2019-03-08 | C66: 17:26:28.368 | D66: 08-03-19 17:26:28 | E66: 1564853188 | F66: 49.00000024 | G66: AB Retract Fast | H66: RecMode false, PID Off, Ret'g, Open, Scend sub: , depthNum = 0 | I66: 0.17 | J66: 144.017643 | K66: 30.8 | L66: 1.2425
A67: $ | B67: 2019-03-08 | C67: 17:26:30.988 | D67: =TEXT(B67,"dd-mm-yy ")&TEXT(C67,"hh:mm:ss") -> 08-03-19 17:26:31 | E67: =(D67-DATE(1970,1,1))*86400 -> 1564853191 | F67: =E67-$E$2 -> 52.00000024 | G67: AB Retract Fast | H67: Changin Elmo JV to = -15000
A68: $ | B68: 2019-03-08 | C68: 17:26:29.180 | D68: 08-03-19 17:26:29 | E68: 1564853189 | F68: 50.00000048 | G68: AB Retract Fast | H68: SBE41 Message | N68: 0.18 | O68: 0.18 | P68: 0.169219 | Q68: 0.000122 | R68: -0.003333 | S68: 0 | T68: -3.1e-05 | U68: 3
A69: $ | B69: 2019-03-08 | C69: 17:26:31.448 | D69: 08-03-19 17:26:31 | E69: 1564853191 | F69: 52.00000024 | G69: AB Retract Fast | H69: RecMode false, PID Off, Ret'g, Open, Scend sub: , depthNum = 0 | I69: 0.18 | J69: 143.253515 | K69: 30.8 | L69: 1.256875
A70: $ | B70: 2019-03-08 | C70: 17:26:34.068 | D70: 08-03-19 17:26:34 | E70: 1564853194 | F70: 55.00000024 | G70: AB Retract Fast | H70: Changin Elmo JV to = -15000
A71: $ | B71: 2019-03-08 | C71: 17:26:32.245 | D71: 08-03-19 17:26:32 | E71: 1564853192 | F71: 53.00000048 | G71: AB Retract Fast | H71: SBE41 Message | N71: 0.17 | O71: 0.17 | P71: 0.166889 | Q71: 1.3e-05 | R71: 0.003333 | S71: 0 | T71: -2.4e-05 | U71: 3
A72: $ | B72: 2019-03-08 | C72: 17:26:34.718 | D72: 08-03-19 17:26:35 | E72: 1564853195 | F72: 56.00000048 | G72: AB Retract Fast | H72: RecMode false, PID Off, Ret'g, Open, Scend sub: , depthNum = 0 | I72: 0.17 | J72: 142.496961 | K72: 30.8 | L72: 1.21125
A73: $ | B73: 2019-03-08 | C73: 17:26:37.145 | D73: 08-03-19 17:26:37 | E73: 1564853197 | F73: 58.00000024 | G73: AB Retract Fast | H73: Changin Elmo JV to = -15000
A74: $ | B74: 2019-03-08 | C74: 17:26:35.326 | D74: 08-03-19 17:26:35 | E74: 1564853195 | F74: 56.00000048 | G74: AB Retract Fast | H74: SBE41 Message | N74: 0.16 | O74: 0.16 | P74: 0.167565 | Q74: 0.00014 | R74: 0.003333 | S74: 0.003333 | T74: -1.7e-05 | U74: 3
A75: $ | B75: 2019-03-08 | C75: 17:26:37.797 | D75: 08-03-19 17:26:38 | E75: 1564853198 | F75: 59 | G75: AB Retract Fast | H75: RecMode false, PID Off, Ret'g, Open, Scend sub: , depthNum = 0 | I75: 0.16 | J75: 141.740504 | K75: 30.775 | L75: 1.253125
A76: $ | B76: 2019-03-08 | C76: 17:26:40.222 | D76: 08-03-19 17:26:40 | E76: 1564853200 | F76: 61.00000048 | G76: AB Retract Fast | H76: Changin Elmo JV to = -15000
A77: $ | B77: 2019-03-08 | C77: 17:26:38.191 | D77: 08-03-19 17:26:38 | E77: 1564853198 | F77: 59 | G77: AB Retract Fast | H77: SBE41 Message | N77: 0.18 | O77: 0.18 | P77: 0.170656 | Q77: 0.000333 | R77: -0.006667 | S77: -0.001667 | T77: -1.6e-05 | U77: 3
A78: $ | B78: 2019-03-08 | C78: 17:26:40.681 | D78: 08-03-19 17:26:41 | E78: 1564853201 | F78: 62 | G78: AB Retract Fast | H78: RecMode false, PID Off, Ret'g, Open, Scend sub: , depthNum = 0 | I78: 0.18 | J78: 140.984904 | K78: 30.8 | L78: 1.27625
A79: $ | B79: 2019-03-08 | C79: 17:26:43.303 | D79: 08-03-19 17:26:43 | E79: 1564853203 | F79: 64.00000048 | G79: AB Retract Fast | H79: Changin Elmo JV to = -15000
A80: $ | B80: 2019-03-08 | C80: 17:26:41.274 | D80: 08-03-19 17:26:41 | E80: 1564853201 | F80: 62 | G80: AB Retract Fast | H80: SBE41 Message | N80: 0.17 | O80: 0.17 | P80: 0.173039 | Q80: 0.000328 | R80: 0.003333 | S80: -0.001667 | T80: -1.7e-05 | U80: 3
A81: $ | B81: 2019-03-08 | C81: 17:26:43.763 | D81: 08-03-19 17:26:44 | E81: 1564853204 | F81: 65 | G81: AB Retract Fast | H81: RecMode false, PID Off, Ret'g, Open, Scend sub: , depthNum = 0 | I81: 0.17 | J81: 140.228872 | K81: 30.8 | L81: 1.235625
A82: $ | B82: 2019-03-08 | C82: 17:26:46.385 | D82: 08-03-19 17:26:46 | E82: 1564853206 | F82: 67 | G82: AB Retract Fast | H82: Changin Elmo JV to = -15000
A83: $ | B83: 2019-03-08 | C83: 17:26:44.356 | D83: 08-03-19 17:26:44 | E83: 1564853204 | F83: 65 | G83: AB Retract Fast | H83: SBE41 Message | N83: 0.18 | O83: 0.18 | P83: 0.172894 | Q83: 5.9e-05 | R83: -0.003333 | S83: 0 | T83: -1.8e-05 | U83: 3
A84: $ | B84: 2019-03-08 | C84: 17:26:46.845 | D84: 08-03-19 17:26:47 | E84: 1564853207 | F84: 68.00000024 | G84: AB Retract Fast | H84: RecMode false, PID Off, Ret'g, Open, Scend sub: , depthNum = 0 | I84: 0.18 | J84: 139.478298 | K84: 30.8 | L84: 1.1975
A85: $ | B85: 2019-03-08 | C85: 17:26:49.464 | D85: 08-03-19 17:26:49 | E85: 1564853209 | F85: 70 | G85: AB Retract Fast | H85: Changin Elmo JV to = -15000
A86: $ | B86: 2019-03-08 | C86: 17:26:47.245 | D86: 08-03-19 17:26:47 | E86: 1564853207 | F86: 68.00000024 | G86: AB Retract Fast | H86: SBE41 Message | N86: 0.15 | O86: 0.15 | P86: 0.171261 | Q86: -0.000293 | R86: 0.01 | S86: 0.003333 | T86: -1.6e-05 | U86: 3
A87: $ | B87: 2019-03-08 | C87: 17:26:50.181 | D87: 08-03-19 17:26:50 | E87: 1564853210 | F87: 71.00000024 | G87: AB Retract Fast | H87: SBE41 Message | N87: 0.17 | O87: 0.17 | P87: 0.170585 | Q87: -0.000453 | R87: -0.006667 | S87: 0.001667 | T87: -1.4e-05 | U87: 3
A88: $ | B88: 2019-03-08 | C88: 17:26:50.362 | D88: 08-03-19 17:26:50 | E88: 1564853210 | F88: 71.00000024 | G88: AB Retract Fast | H88: RecMode false, PID Off, Ret'g, Open, Scend sub: , depthNum = 0 | I88: 0.17 | J88: 138.622175 | K88: 30.8 | L88: 1.23875
A89: $ | B89: 2019-03-08 | C89: 17:26:52.477 | D89: 08-03-19 17:26:52 | E89: 1564853212 | F89: 73 | G89: AB Retract Fast | H89: Changin Elmo JV to = -15000
A90: $ | B90: 2019-03-08 | C90: 17:26:52.687 | D90: 08-03-19 17:26:53 | E90: 1564853213 | F90: 74.00000024 | G90: AB Retract Fast | H90: RecMode false, PID Off, Ret'g, Open, Scend sub: , depthNum = 0 | I90: 0.17 | J90: 138.622175 | K90: 30.8 | L90: 1.23875
A91: $ | B91: 2019-03-08 | C91: 17:26:55.518 | D91: 08-03-19 17:26:56 | E91: 1564853216 | F91: 77.00000048 | G91: AB Retract Fast | H91: Changin Elmo JV to = -15000
A92: $ | B92: 2019-03-08 | C92: 17:26:53.293 | D92: 08-03-19 17:26:53 | E92: 1564853213 | F92: 74.00000024 | G92: AB Retract Fast | H92: SBE41 Message | N92: 0.18 | O92: 0.18 | P92: 0.171437 | Q92: -0.000315 | R92: -0.003333 | S92: -0.005 | T92: -1.3e-05 | U92: 3
A93: $ | B93: 2019-03-08 | C93: 17:26:56.180 | D93: 08-03-19 17:26:56 | E93: 1564853216 | F93: 77.00000048 | G93: AB Retract Fast | H93: SBE41 Message | N93: 0.17 | O93: 0.17 | P93: 0.171498 | Q93: -5.4e-05 | R93: 0.003333 | S93: 0 | T93: -1.1e-05 | U93: 3
A94: $ | B94: 2019-03-08 | C94: 17:26:56.603 | D94: 08-03-19 17:26:57 | E94: 1564853217 | F94: 78 | G94: AB Retract Fast | H94: RecMode false, PID Off, Ret'g, Open, Scend sub: , depthNum = 0 | I94: 0.17 | J94: 137.140419 | K94: 30.8 | L94: 1.24375
A95: $ | B95: 2019-03-08 | C95: 17:26:58.528 | D95: 08-03-19 17:26:59 | E95: 1564853219 | F95: 80.00000048 | G95: AB Retract Fast | H95: Changin Elmo JV to = -15000
A96: $ | B96: 2019-03-08 | C96: 17:26:58.738 | D96: 08-03-19 17:26:59 | E96: 1564853219 | F96: 80.00000048 | G96: AB Retract Fast | H96: RecMode false, PID Off, Ret'g, Open, Scend sub: , depthNum = 0 | I96: 0.17 | J96: 137.140419 | K96: 30.8 | L96: 1.24375
A97: $ | B97: 2019-03-08 | C97: 17:27:01.565 | D97: 08-03-19 17:27:02 | E97: 1564853222 | F97: 83.00000048 | G97: AB Retract Fast | H97: Changin Elmo JV to = -15000
A98: $ | B98: 2019-03-08 | C98: 17:26:59.342 | D98: 08-03-19 17:26:59 | E98: 1564853219 | F98: 80.00000048 | G98: AB Retract Fast | H98: SBE41 Message | N98: 0.17 | O98: 0.17 | P98: 0.169417 | Q98: 0.000105 | R98: 0 | S98: 0.001667 | T98: -7e-06 | U98: 3
A99: $ | B99: 2019-03-08 | C99: 17:27:02.217 | D99: 08-03-19 17:27:02 | E99: 1564853222 | F99: 83.00000048 | G99: AB Retract Fast | H99: SBE41 Message | N99: 0.17 | O99: 0.17 | P99: 0.167669 | Q99: 0.000158 | R99: 0 | S99: 0 | T99: 0 | U99: 3
A100: $ | B100: 2019-03-08 | C100: 17:27:02.657 | D100: 08-03-19 17:27:03 | E100: 1564853223 | F100: 84.00000024 | G100: AB Retract Fast | H100: RecMode false, PID Off, Ret'g, Open, Scend sub: , depthNum = 0 | I100: 0.17 | J100: 135.671961 | K100: 30.8 | L100: 1.19125
A101: $ | B101: 2019-03-08 | C101: 17:27:04.579 | D101: 08-03-19 17:27:05 | E101: 1564853225 | F101: 86 | G101: AB Retract Fast | H101: Changin Elmo JV to = -15000
A102: $ | B102: 2019-03-08 | C102: 17:27:04.793 | D102: 08-03-19 17:27:05 | E102: 1564853225 | F102: 86 | G102: AB Retract Fast | H102: RecMode false, PID Off, Ret'g, Open, Scend sub: , depthNum = 0 | I102: 0.17 | J102: 135.671961 | K102: 30.8 | L102: 1.19125
A103: $ | B103: 2019-03-08 | C103: 17:27:07.659 | D103: 08-03-19 17:27:08 | E103: 1564853228 | F103: 89 | G103: AB Retract Fast | H103: Changin Elmo JV to = -15000
A104: $ | B104: 2019-03-08 | C104: 17:27:07.964 | D104: 08-03-19 17:27:08 | E104: 1564853228 | F104: 89 | G104: AB Retract Fast | H104: PTH Message | V104: 812.221436 | W104: 19.108333 | X104: 47.020477 | Y104: 19.742131
A105: $ | B105: 2019-03-08 | C105: 17:27:05.186 | D105: 08-03-19 17:27:05 | E105: 1564853225 | F105: 86 | G105: AB Retract Fast | H105: SBE41 Message | N105: 0.16 | O105: 0.16 | P105: 0.168782 | Q105: 0.000205 | R105: 0.003333 | S105: 0.001667 | T105: 4e-06 | U105: 3
A106: $ | B106: 2019-03-08 | C106: 17:27:08.414 | D106: 08-03-19 17:27:08 | E106: 1564853228 | F106: 89 | G106: AB Retract Fast | H106: SBE41 Message | N106: 0.16 | O106: 0.16 | P106: 0.171092 | Q106: 0.000236 | R106: 0 | S106: 0.001667 | T106: 6e-06 | U106: 3
A107: $ | B107: 2019-03-08 | C107: 17:27:08.663 | D107: 08-03-19 17:27:09 | E107: 1564853229 | F107: 90.00000024 | G107: AB Retract Fast | H107: RecMode false, PID Off, Ret'g, Open, Scend sub: , depthNum = 0 | I107: 0.16 | J107: 134.153777 | K107: 30.8 | L107: 1.229375
A108: $ | B108: 2019-03-08 | C108: 17:27:10.679 | D108: 08-03-19 17:27:11 | E108: 1564853231 | F108: 92.00000024 | G108: AB Retract Fast | H108: Changin Elmo JV to = -15000
A109: $ | B109: 2019-03-08 | C109: 17:27:10.893 | D109: 08-03-19 17:27:11 | E109: 1564853231 | F109: 92.00000024 | G109: AB Retract Fast | H109: RecMode false, PID Off, Ret'g, Open, Scend sub: , depthNum = 0 | I109: 0.16 | J109: 134.153777 | K109: 30.8 | L109: 1.229375
A110: $ | B110: 2019-03-08 | C110: 17:27:13.724 | D110: 08-03-19 17:27:14 | E110: 1564853234 | F110: 95.00000024 | G110: AB Retract Fast | H110: Changin Elmo JV to = -15000
A111: $ | B111: 2019-03-08 | C111: 17:27:11.280 | D111: 08-03-19 17:27:11 | E111: 1564853231 | F111: 92.00000024 | G111: AB Retract Fast | H111: SBE41 Message | N111: 0.16 | O111: 0.16 | P111: 0.171539 | Q111: 0.000176 | R111: 0 | S111: 0 | T111: 7e-06 | U111: 3
A112: $ | B112: 2019-03-08 | C112: 17:27:14.374 | D112: 08-03-19 17:27:14 | E112: 1564853234 | F112: 95.00000024 | G112: AB Retract Fast | H112: SBE41 Message | N112: 0.17 | O112: 0.17 | P112: 0.169696 | Q112: 1.6e-05 | R112: -0.003333 | S112: -0.001667 | T112: 1e-05 | U112: 3
A113: $ | B113: 2019-03-08 | C113: 17:27:14.620 | D113: 08-03-19 17:27:15 | E113: 1564853235 | F113: 96.00000048 | G113: AB Retract Fast | H113: RecMode false, PID Off, Ret'g, Open, Scend sub: , depthNum = 0 | I113: 0.17 | J113: 132.690466 | K113: 30.8 | L113: 1.20875
A114: $ | B114: 2019-03-08 | C114: 17:27:16.740 | D114: 08-03-19 17:27:17 | E114: 1564853237 | F114: 98.00000024 | G114: AB Retract Fast | H114: Changin Elmo JV to = -15000
A115: $ | B115: 2019-03-08 | C115: 17:27:17.157 | D115: 08-03-19 17:27:17 | E115: 1564853237 | F115: 98.00000024 | G115: AB Retract Fast | H115: RecMode false, PID Off, Ret'g, Open, Scend sub: , depthNum = 0 | I115: 0.17 | J115: 132.048022 | K115: 30.775 | L115: 1.20375
A116: $ | B116: 2019-03-08 | C116: 17:27:19.787 | D116: 08-03-19 17:27:20 | E116: 1564853240 | F116: 101.0000002 | G116: AB Retract Fast | H116: Changin Elmo JV to = -15000
A117: $ | B117: 2019-03-08 | C117: 17:27:17.364 | D117: 08-03-19 17:27:17 | E117: 1564853237 | F117: 98.00000024 | G117: AB Retract Fast | H117: SBE41 Message | N117: 0.16 | O117: 0.16 | P117: 0.166719 | Q117: -0.000147 | R117: 0.003333 | S117: 0 | T117: 1.8e-05 | U117: 3
A118: $ | B118: 2019-03-08 | C118: 17:27:20.237 | D118: 08-03-19 17:27:20 | E118: 1564853240 | F118: 101.0000002 | G118: AB Retract Fast | H118: SBE41 Message | N118: 0.16 | O118: 0.16 | P118: 0.163804 | Q118: -0.000126 | R118: 0 | S118: 0.001667 | T118: 2.8e-05 | U118: 3
A119: $ | B119: 2019-03-08 | C119: 17:27:20.677 | D119: 08-03-19 17:27:21 | E119: 1564853241 | F119: 102 | G119: AB Retract Fast | H119: RecMode false, PID Off, Ret'g, Open, Scend sub: , depthNum = 0 | I119: 0.16 | J119: 131.241311 | K119: 30.775 | L119: 1.218125
A120: $ | B120: 2019-03-08 | C120: 17:27:22.801 | D120: 08-03-19 17:27:23 | E120: 1564853243 | F120: 104.0000005 | G120: AB Retract Fast | H120: Changin Elmo JV to = -15000
A121: $ | B121: 2019-03-08 | C121: 17:27:23.182 | D121: 08-03-19 17:27:23 | E121: 1564853243 | F121: 104.0000005 | G121: AB Retract Fast | H121: SBE41 Message | N121: 0.15 | O121: 0.15 | P121: 0.162304 | Q121: 0.000182 | R121: 0.003333 | S121: 0.001667 | T121: 4e-05 | U121: 3
A122: $ | B122: 2019-03-08 | C122: 17:27:23.260 | D122: 08-03-19 17:27:23 | E122: 1564853243 | F122: 104.0000005 | G122: AB Retract Fast | H122: RecMode false, PID Off, Ret'g, Open, Scend sub: , depthNum = 0 | I122: 0.15 | J122: 130.5499 | K122: 30.775 | L122: 1.25875
A123: $ | B123: 2019-03-08 | C123: 17:27:25.879 | D123: 08-03-19 17:27:26 | E123: 1564853246 | F123: 107.0000005 | G123: AB Retract Fast | H123: Changin Elmo JV to = -15000
A124: $ | B124: 2019-03-08 | C124: 17:27:26.089 | D124: 08-03-19 17:27:26 | E124: 1564853246 | F124: 107.0000005 | G124: AB Retract Fast | H124: RecMode false, PID Off, Ret'g, Open, Scend sub: , depthNum = 0 | I124: 0.15 | J124: 130.5499 | K124: 30.775 | L124: 1.25875
A125: $ | B125: 2019-03-08 | C125: 17:27:28.918 | D125: 08-03-19 17:27:29 | E125: 1564853249 | F125: 110 | G125: AB Retract Fast | H125: Changin Elmo JV to = -15000
A126: $ | B126: 2019-03-08 | C126: 17:27:26.298 | D126: 08-03-19 17:27:26 | E126: 1564853246 | F126: 107.0000005 | G126: AB Retract Fast | H126: SBE41 Message | N126: 0.16 | O126: 0.16 | P126: 0.1625 | Q126: 0.000589 | R126: -0.003333 | S126: 0 | T126: 5.1e-05 | U126: 3
A127: $ | B127: 2019-03-08 | C127: 17:27:29.181 | D127: 08-03-19 17:27:29 | E127: 1564853249 | F127: 110 | G127: AB Retract Fast | H127: SBE41 Message | N127: 0.17 | O127: 0.17 | P127: 0.162697 | Q127: 0.000762 | R127: -0.003333 | S127: -0.003333 | T127: 6.1e-05 | U127: 3
A128: $ | B128: 2019-03-08 | C128: 17:27:29.815 | D128: 08-03-19 17:27:30 | E128: 1564853250 | F128: 111.0000002 | G128: AB Retract Fast | H128: RecMode false, PID Off, Ret'g, Open, Scend sub: , depthNum = 0 | I128: 0.17 | J128: 128.932748 | K128: 30.775 | L128: 1.224375
A129: $ | B129: 2019-03-08 | C129: 17:27:31.933 | D129: 08-03-19 17:27:32 | E129: 1564853252 | F129: 113 | G129: AB Retract Fast | H129: Changin Elmo JV to = -15000
A130: $ | B130: 2019-03-08 | C130: 17:27:32.181 | D130: 08-03-19 17:27:32 | E130: 1564853252 | F130: 113 | G130: AB Retract Fast | H130: SBE41 Message | N130: 0.17 | O130: 0.17 | P130: 0.16126 | Q130: 0.000615 | R130: 0 | S130: -0.001667 | T130: 7.2e-05 | U130: 3
A131: $ | B131: 2019-03-08 | C131: 17:27:32.582 | D131: =TEXT(B131,"dd-mm-yy ")&TEXT(C131,"hh:mm:ss") -> 08-03-19 17:27:33 | E131: =(D131-DATE(1970,1,1))*86400 -> 1564853253 | F131: =E131-$E$2 -> 114.0000002 | G131: AB Retract Fast | H131: RecMode false, PID Off, Ret'g, Open, Scend sub: , depthNum = 0 | I131: 0.17 | J131: 128.288154 | K131: 30.775 | L131: 1.248125
A132: $ | B132: 2019-03-08 | C132: 17:27:35.011 | D132: 08-03-19 17:27:35 | E132: 1564853255 | F132: 116 | G132: AB Retract Fast | H132: Changin Elmo JV to = -15000
A133: $ | B133: 2019-03-08 | C133: 17:27:35.221 | D133: 08-03-19 17:27:35 | E133: 1564853255 | F133: 116 | G133: AB Retract Fast | H133: SBE41 Message | N133: 0.15 | O133: 0.15 | P133: 0.159023 | Q133: 0.000373 | R133: 0.006667 | S133: 0.003333 | T133: 8.4e-05 | U133: 3
A134: $ | B134: 2019-03-08 | C134: 17:27:35.466 | D134: 08-03-19 17:27:35 | E134: 1564853255 | F134: 116 | G134: AB Retract Fast | H134: RecMode false, PID Off, Ret'g, Open, Scend sub: , depthNum = 0 | I134: 0.15 | J134: 127.522244 | K134: 30.775 | L134: 1.209375
A135: $ | B135: 2019-03-08 | C135: 17:27:38.090 | D135: 08-03-19 17:27:38 | E135: 1564853258 | F135: 119.0000002 | G135: AB Retract Fast | H135: Changin Elmo JV to = -15000
A136: $ | B136: 2019-03-08 | C136: 17:27:38.299 | D136: 08-03-19 17:27:38 | E136: 1564853258 | F136: 119.0000002 | G136: AB Retract Fast | H136: SBE41 Message | N136: 0.18 | O136: 0.18 | P136: 0.158565 | Q136: 0.000262 | R136: -0.01 | S136: -0.001667 | T136: 9.8e-05 | U136: 3
A137: $ | B137: 2019-03-08 | C137: 17:27:38.549 | D137: 08-03-19 17:27:39 | E137: 1564853259 | F137: 120.0000005 | G137: AB Retract Fast | H137: RecMode false, PID Off, Ret'g, Open, Scend sub: , depthNum = 0 | I137: 0.18 | J137: 126.76192 | K137: 30.775 | L137: 1.23375
A138: $ | B138: 2019-03-08 | C138: 17:27:41.170 | D138: 08-03-19 17:27:41 | E138: 1564853261 | F138: 122.0000002 | G138: AB Retract Fast | H138: Changin Elmo JV to = -15000
A139: $ | B139: 2019-03-08 | C139: 17:27:41.380 | D139: 08-03-19 17:27:41 | E139: 1564853261 | F139: 122.0000002 | G139: AB Retract Fast | H139: SBE41 Message | N139: 0.16 | O139: 0.16 | P139: 0.160845 | Q139: 0.000293 | R139: 0.006667 | S139: -0.001667 | T139: 0.000108 | U139: 3
A140: $ | B140: 2019-03-08 | C140: 17:27:41.630 | D140: 08-03-19 17:27:42 | E140: 1564853262 | F140: 123.0000005 | G140: AB Retract Fast | H140: RecMode false, PID Off, Ret'g, Open, Scend sub: , depthNum = 0 | I140: 0.16 | J140: 125.990623 | K140: 30.775 | L140: 1.24125
A141: $ | B141: 2019-03-08 | C141: 17:27:44.251 | D141: 08-03-19 17:27:44 | E141: 1564853264 | F141: 125.0000002 | G141: AB Retract Fast | H141: Changin Elmo JV to = -15000
A142: $ | B142: 2019-03-08 | C142: 17:27:44.181 | D142: 08-03-19 17:27:44 | E142: 1564853264 | F142: 125.0000002 | G142: AB Retract Fast | H142: SBE41 Message | N142: 0.16 | O142: 0.16 | P142: 0.163613 | Q142: 0.000293 | R142: 0 | S142: 0.003333 | T142: 0.000114 | U142: 3
A143: $ | B143: 2019-03-08 | C143: 17:27:44.903 | D143: 08-03-19 17:27:45 | E143: 1564853265 | F143: 126.0000005 | G143: AB Retract Fast | H143: RecMode false, PID Off, Ret'g, Open, Scend sub: , depthNum = 0 | I143: 0.16 | J143: 125.221762 | K143: 30.775 | L143: 1.258125
A144: $ | B144: 2019-03-08 | C144: 17:27:47.329 | D144: 08-03-19 17:27:47 | E144: 1564853267 | F144: 128.0000005 | G144: AB Retract Fast | H144: Changin Elmo JV to = -15000
A145: $ | B145: 2019-03-08 | C145: 17:27:47.181 | D145: 08-03-19 17:27:47 | E145: 1564853267 | F145: 128.0000005 | G145: AB Retract Fast | H145: SBE41 Message | N145: 0.15 | O145: 0.15 | P145: 0.164717 | Q145: 0.000119 | R145: 0.003333 | S145: 0.001667 | T145: 0.000117 | U145: 3
A146: $ | B146: 2019-03-08 | C146: 17:27:47.981 | D146: 08-03-19 17:27:48 | E146: 1564853268 | F146: 129 | G146: AB Retract Fast | H146: RecMode false, PID Off, Ret'g, Open, Scend sub: , depthNum = 0 | I146: 0.15 | J146: 124.457043 | K146: 30.775 | L146: 1.216875
A147: $ | B147: 2019-03-08 | C147: 17:27:50.408 | D147: 08-03-19 17:27:50 | E147: 1564853270 | F147: 131.0000005 | G147: AB Retract Fast | H147: Changin Elmo JV to = -15000
A148: $ | B148: 2019-03-08 | C148: 17:27:50.181 | D148: 08-03-19 17:27:50 | E148: 1564853270 | F148: 131.0000005 | G148: AB Retract Fast | H148: SBE41 Message | N148: 0.17 | O148: 0.17 | P148: 0.164843 | Q148: -0.000186 | R148: -0.006667 | S148: -0.001667 | T148: 0.000117 | U148: 3
A149: $ | B149: 2019-03-08 | C149: 17:27:51.057 | D149: 08-03-19 17:27:51 | E149: 1564853271 | F149: 132 | G149: AB Retract Fast | H149: RecMode false, PID Off, Ret'g, Open, Scend sub: , depthNum = 0 | I149: 0.17 | J149: 123.689798 | K149: 30.775 | L149: 1.226875
A150: $ | B150: 2019-03-08 | C150: 17:27:53.480 | D150: 08-03-19 17:27:53 | E150: 1564853273 | F150: 134.0000005 | G150: AB Retract Fast | H150: Changin Elmo JV to = -15000
A151: $ | B151: 2019-03-08 | C151: 17:27:53.180 | D151: 08-03-19 17:27:53 | E151: 1564853273 | F151: 134.0000005 | G151: AB Retract Fast | H151: SBE41 Message | N151: 0.16 | O151: 0.16 | P151: 0.164613 | Q151: -0.000458 | R151: 0.003333 | S151: -0.001667 | T151: 0.000114 | U151: 3
A152: $ | B152: 2019-03-08 | C152: 17:27:54.133 | D152: 08-03-19 17:27:54 | E152: 1564853274 | F152: 135.0000002 | G152: AB Retract Fast | H152: RecMode false, PID Off, Ret'g, Open, Scend sub: , depthNum = 0 | I152: 0.16 | J152: 122.936324 | K152: 30.775 | L152: 1.2525
A153: $ | B153: 2019-03-08 | C153: 17:27:56.558 | D153: 08-03-19 17:27:57 | E153: 1564853277 | F153: 138.0000002 | G153: AB Retract Fast | H153: Changin Elmo JV to = -15000
A154: $ | B154: 2019-03-08 | C154: 17:27:56.181 | D154: 08-03-19 17:27:56 | E154: 1564853276 | F154: 137 | G154: AB Retract Fast | H154: SBE41 Message | N154: 0.15 | O154: 0.15 | P154: 0.162978 | Q154: -0.000533 | R154: 0.003333 | S154: 0.003333 | T154: 0.000112 | U154: 3
A155: $ | B155: 2019-03-08 | C155: 17:27:57.211 | D155: 08-03-19 17:27:57 | E155: 1564853277 | F155: 138.0000002 | G155: AB Retract Fast | H155: RecMode false, PID Off, Ret'g, Open, Scend sub: , depthNum = 0 | I155: 0.15 | J155: 122.161576 | K155: 30.775 | L155: 1.23875
A156: $ | B156: 2019-03-08 | C156: 17:27:59.636 | D156: 08-03-19 17:28:00 | E156: 1564853280 | F156: 141.0000002 | G156: AB Retract Fast | H156: Changin Elmo JV to = -15000
A157: $ | B157: 2019-03-08 | C157: 17:27:59.181 | D157: 08-03-19 17:27:59 | E157: 1564853279 | F157: 140 | G157: AB Retract Fast | H157: SBE41 Message | N157: 0.17 | O157: 0.17 | P157: 0.160564 | Q157: -0.000329 | R157: -0.006667 | S157: -0.001667 | T157: 0.000113 | U157: 3
A158: $ | B158: 2019-03-08 | C158: 17:28:00.288 | D158: 08-03-19 17:28:00 | E158: 1564853280 | F158: 141.0000002 | G158: AB Retract Fast | H158: RecMode false, PID Off, Ret'g, Open, Scend sub: , depthNum = 0 | I158: 0.17 | J158: 121.400823 | K158: 30.775 | L158: 1.2075
A159: $ | B159: 2019-03-08 | C159: 17:28:02.715 | D159: 08-03-19 17:28:03 | E159: 1564853283 | F159: 144.0000002 | G159: AB Retract Fast | H159: Changin Elmo JV to = -15000
A160: $ | B160: 2019-03-08 | C160: 17:28:02.181 | D160: 08-03-19 17:28:02 | E160: 1564853282 | F160: 143 | G160: AB Retract Fast | H160: SBE41 Message | N160: 0.16 | O160: 0.16 | P160: 0.159585 | Q160: 4.9e-05 | R160: 0.003333 | S160: -0.001667 | T160: 0.000115 | U160: 3
A161: $ | B161: 2019-03-08 | C161: 17:28:03.173 | D161: 08-03-19 17:28:03 | E161: 1564853283 | F161: 144.0000002 | G161: AB Retract Fast | H161: RecMode false, PID Off, Ret'g, Open, Scend sub: , depthNum = 0 | I161: 0.16 | J161: 120.641757 | K161: 30.775 | L161: 1.23875
A162: $ | B162: 2019-03-08 | C162: 17:28:05.740 | D162: 08-03-19 17:28:06 | E162: 1564853286 | F162: 147.0000005 | G162: AB Retract Fast | H162: Changin Elmo JV to = -15000
A163: $ | B163: 2019-03-08 | C163: 17:28:06.044 | D163: 08-03-19 17:28:06 | E163: 1564853286 | F163: 147.0000005 | G163: AB Retract Fast | H163: PTH Message | V163: 824.367432 | W163: 19.075 | X163: 47.256989 | Y163: 19.752856
A164: $ | B164: 2019-03-08 | C164: 17:28:05.181 | D164: 08-03-19 17:28:05 | E164: 1564853285 | F164: 146.0000002 | G164: AB Retract Fast | H164: SBE41 Message | N164: 0.17 | O164: 0.17 | P164: 0.159917 | Q164: 0.000351 | R164: -0.003333 | S164: 0 | T164: 0.000114 | U164: 3
A165: $ | B165: 2019-03-08 | C165: 17:28:06.688 | D165: 08-03-19 17:28:07 | E165: 1564853287 | F165: 148 | G165: AB Retract Fast | H165: RecMode false, PID Off, Ret'g, Open, Scend sub: , depthNum = 0 | I165: 0.17 | J165: 119.819575 | K165: 30.775 | L165: 1.25125
A166: $ | B166: 2019-03-08 | C166: 17:28:08.814 | D166: 08-03-19 17:28:09 | E166: 1564853289 | F166: 150.0000005 | G166: AB Retract Fast | H166: Changin Elmo JV to = -15000
A167: $ | B167: 2019-03-08 | C167: 17:28:08.180 | D167: 08-03-19 17:28:08 | E167: 1564853288 | F167: 149.0000002 | G167: AB Retract Fast | H167: SBE41 Message | N167: 0.16 | O167: 0.16 | P167: 0.160021 | Q167: 0.000446 | R167: 0.003333 | S167: 0 | T167: 0.000113 | U167: 3
A168: $ | B168: 2019-03-08 | C168: 17:28:09.463 | D168: 08-03-19 17:28:09 | E168: 1564853289 | F168: 150.0000005 | G168: AB Retract Fast | H168: RecMode false, PID Off, Ret'g, Open, Scend sub: , depthNum = 0 | I168: 0.16 | J168: 119.134554 | K168: 30.775 | L168: 1.238125
A169: $ | B169: 2019-03-08 | C169: 17:28:11.887 | D169: 08-03-19 17:28:12 | E169: 1564853292 | F169: 153 | G169: AB Retract Fast | H169: Changin Elmo JV to = -15000
A170: $ | B170: 2019-03-08 | C170: 17:28:11.181 | D170: 08-03-19 17:28:11 | E170: 1564853291 | F170: 152.0000002 | G170: AB Retract Fast | H170: SBE41 Message | N170: 0.16 | O170: 0.16 | P170: 0.160366 | Q170: 0.000401 | R170: 0 | S170: 0.001667 | T170: 0.000112 | U170: 3
A171: $ | B171: 2019-03-08 | C171: 17:28:12.540 | D171: 08-03-19 17:28:13 | E171: 1564853293 | F171: 154.0000002 | G171: AB Retract Fast | H171: RecMode false, PID Off, Ret'g, Open, Scend sub: , depthNum = 0 | I171: 0.16 | J171: 118.37513 | K171: 30.775 | L171: 1.2475
A172: $ | B172: 2019-03-08 | C172: 17:28:14.963 | D172: 08-03-19 17:28:15 | E172: 1564853295 | F172: 156 | G172: AB Retract Fast | H172: Changin Elmo JV to = -15000
A173: $ | B173: 2019-03-08 | C173: 17:28:14.181 | D173: 08-03-19 17:28:14 | E173: 1564853294 | F173: 155.0000005 | G173: AB Retract Fast | H173: SBE41 Message | N173: 0.16 | O173: 0.16 | P173: 0.161896 | Q173: 0.000261 | R173: 0 | S173: 0 | T173: 0.000112 | U173: 3
A174: $ | B174: 2019-03-08 | C174: 17:28:15.421 | D174: 08-03-19 17:28:15 | E174: 1564853295 | F174: 156 | G174: AB Retract Fast | H174: RecMode false, PID Off, Ret'g, Open, Scend sub: , depthNum = 0 | I174: 0.16 | J174: 117.628225 | K174: 30.775 | L174: 1.278125
A175: $ | B175: 2019-03-08 | C175: 17:28:18.038 | D175: 08-03-19 17:28:18 | E175: 1564853298 | F175: 159 | G175: AB Retract Fast | H175: Changin Elmo JV to = -15000
A176: $ | B176: 2019-03-08 | C176: 17:28:17.180 | D176: 08-03-19 17:28:17 | E176: 1564853297 | F176: 158.0000005 | G176: AB Retract Fast | H176: SBE41 Message | N176: 0.18 | O176: 0.18 | P176: 0.16352 | Q176: 2.7e-05 | R176: -0.006667 | S176: -0.003333 | T176: 0.000109 | U176: 3
A177: $ | B177: 2019-03-08 | C177: 17:28:18.688 | D177: 08-03-19 17:28:19 | E177: 1564853299 | F177: 160.0000002 | G177: AB Retract Fast | H177: RecMode false, PID Off, Ret'g, Open, Scend sub: , depthNum = 0 | I177: 0.18 | J177: 116.874638 | K177: 30.775 | L177: 1.246875
A178: $ | B178: 2019-03-08 | C178: 17:28:21.115 | D178: 08-03-19 17:28:21 | E178: 1564853301 | F178: 162.0000002 | G178: AB Retract Fast | H178: Changin Elmo JV to = -15000
A179: $ | B179: 2019-03-08 | C179: 17:28:20.180 | D179: 08-03-19 17:28:20 | E179: 1564853300 | F179: 161.0000005 | G179: AB Retract Fast | H179: SBE41 Message | N179: 0.19 | O179: 0.19 | P179: 0.163739 | Q179: -0.000206 | R179: -0.003333 | S179: -0.005 | T179: 0.000106 | U179: 3
A180: $ | B180: 2019-03-08 | C180: 17:28:21.765 | D180: 08-03-19 17:28:22 | E180: 1564853302 | F180: 163.0000005 | G180: AB Retract Fast | H180: RecMode false, PID Off, Ret'g, Open, Scend sub: , depthNum = 0 | I180: 0.19 | J180: 116.129188 | K180: 30.775 | L180: 1.23125
A181: $ | B181: 2019-03-08 | C181: 17:28:24.192 | D181: 08-03-19 17:28:24 | E181: 1564853304 | F181: 165.0000002 | G181: AB Retract Fast | H181: Changin Elmo JV to = -15000
A182: $ | B182: 2019-03-08 | C182: 17:28:23.180 | D182: 08-03-19 17:28:23 | E182: 1564853303 | F182: 164 | G182: AB Retract Fast | H182: SBE41 Message | N182: 0.18 | O182: 0.18 | P182: 0.163023 | Q182: -0.000318 | R182: 0.003333 | S182: 0 | T182: 0.000102 | U182: 3
A183: $ | B183: 2019-03-08 | C183: 17:28:24.842 | D183: 08-03-19 17:28:25 | E183: 1564853305 | F183: 166.0000005 | G183: AB Retract Fast | H183: RecMode false, PID Off, Ret'g, Open, Scend sub: , depthNum = 0 | I183: 0.18 | J183: 115.380826 | K183: 30.775 | L183: 1.2375
A184: $ | B184: 2019-03-08 | C184: 17:28:27.267 | D184: 08-03-19 17:28:27 | E184: 1564853307 | F184: 168.0000002 | G184: AB Retract Fast | H184: Changin Elmo JV to = -15000
A185: $ | B185: 2019-03-08 | C185: 17:28:26.180 | D185: 08-03-19 17:28:26 | E185: 1564853306 | F185: 167 | G185: AB Retract Fast | H185: SBE41 Message | N185: 0.17 | O185: 0.17 | P185: 0.163848 | Q185: -0.00029 | R185: 0.003333 | S185: 0.003333 | T185: 9.6e-05 | U185: 3
A186: $ | B186: 2019-03-08 | C186: 17:28:27.919 | D186: 08-03-19 17:28:28 | E186: 1564853308 | F186: 169.0000005 | G186: AB Retract Fast | H186: RecMode false, PID Off, Ret'g, Open, Scend sub: , depthNum = 0 | I186: 0.17 | J186: 114.627087 | K186: 30.775 | L186: 1.255
A187: $ | B187: 2019-03-08 | C187: 17:28:30.342 | D187: 08-03-19 17:28:30 | E187: 1564853310 | F187: 171.0000005 | G187: AB Retract Fast | H187: Changin Elmo JV to = -15000
A188: $ | B188: 2019-03-08 | C188: 17:28:29.180 | D188: 08-03-19 17:28:29 | E188: 1564853309 | F188: 170.0000002 | G188: AB Retract Fast | H188: SBE41 Message | N188: 0.18 | O188: 0.18 | P188: 0.168325 | Q188: -0.000199 | R188: -0.003333 | S188: 0 | T188: 8.8e-05 | U188: 3
A189: $ | B189: 2019-03-08 | C189: 17:28:30.801 | D189: 08-03-19 17:28:31 | E189: 1564853311 | F189: 172 | G189: AB Retract Fast | H189: RecMode false, PID Off, Ret'g, Open, Scend sub: , depthNum = 0 | I189: 0.18 | J189: 113.889519 | K189: 30.775 | L189: 1.26375
A190: $ | B190: 2019-03-08 | C190: 17:28:33.420 | D190: 08-03-19 17:28:33 | E190: 1564853313 | F190: 174.0000005 | G190: AB Retract Fast | H190: Changin Elmo JV to = -15000
A191: $ | B191: 2019-03-08 | C191: 17:28:32.180 | D191: 08-03-19 17:28:32 | E191: 1564853312 | F191: 173.0000002 | G191: AB Retract Fast | H191: SBE41 Message | N191: 0.18 | O191: 0.18 | P191: 0.174956 | Q191: -0.000203 | R191: 0 | S191: -0.001667 | T191: 7.4e-05 | U191: 3
A192: $ | B192: 2019-03-08 | C192: 17:28:34.070 | D192: 08-03-19 17:28:34 | E192: 1564853314 | F192: 175 | G192: AB Retract Fast | H192: RecMode false, PID Off, Ret'g, Open, Scend sub: , depthNum = 0 | I192: 0.18 | J192: 113.14288 | K192: 30.775 | L192: 1.22875
A193: $ | B193: 2019-03-08 | C193: 17:28:36.497 | D193: 08-03-19 17:28:36 | E193: 1564853316 | F193: 177.0000005 | G193: AB Retract Fast | H193: Changin Elmo JV to = -15000
A194: $ | B194: 2019-03-08 | C194: 17:28:35.181 | D194: 08-03-19 17:28:35 | E194: 1564853315 | F194: 176.0000002 | G194: AB Retract Fast | H194: SBE41 Message | N194: 0.19 | O194: 0.19 | P194: 0.179329 | Q194: -0.000481 | R194: -0.003333 | S194: -0.001667 | T194: 5.5e-05 | U194: 3
A195: $ | B195: 2019-03-08 | C195: 17:28:37.147 | D195: =TEXT(B195,"dd-mm-yy ")&TEXT(C195,"hh:mm:ss") -> 08-03-19 17:28:37 | E195: =(D195-DATE(1970,1,1))*86400 -> 1564853317 | F195: =E195-$E$2 -> 178 | G195: AB Retract Fast | H195: RecMode false, PID Off, Ret'g, Open, Scend sub: , depthNum = 0 | I195: 0.19 | J195: 112.40183 | K195: 30.775 | L195: 1.23125
A196: $ | B196: 2019-03-08 | C196: 17:28:39.575 | D196: 08-03-19 17:28:40 | E196: 1564853320 | F196: 181.0000002 | G196: AB Retract Fast | H196: Changin Elmo JV to = -15000
A197: $ | B197: 2019-03-08 | C197: 17:28:38.181 | D197: 08-03-19 17:28:38 | E197: 1564853318 | F197: 179.0000002 | G197: AB Retract Fast | H197: SBE41 Message | N197: 0.2 | O197: 0.2 | P197: 0.179499 | Q197: -0.000974 | R197: -0.003333 | S197: -0.003333 | T197: 3.2e-05 | U197: 3
A198: $ | B198: 2019-03-08 | C198: 17:28:40.225 | D198: 08-03-19 17:28:40 | E198: 1564853320 | F198: 181.0000002 | G198: AB Retract Fast | H198: RecMode false, PID Off, Ret'g, Open, Scend sub: , depthNum = 0 | I198: 0.2 | J198: 111.654631 | K198: 30.775 | L198: 1.2675
A199: $ | B199: 2019-03-08 | C199: 17:28:42.649 | D199: 08-03-19 17:28:43 | E199: 1564853323 | F199: 184.0000002 | G199: AB Retract Fast | H199: Changin Elmo JV to = -15000
A200: $ | B200: 2019-03-08 | C200: 17:28:41.180 | D200: 08-03-19 17:28:41 | E200: 1564853321 | F200: 182.0000005 | G200: AB Retract Fast | H200: SBE41 Message | N200: 0.2 | O200: 0.2 | P200: 0.178346 | Q200: -0.001338 | R200: 0 | S200: -0.001667 | T200: 9e-06 | U200: 3
... 3589 more rows
